bitfinex-derivatives/quotes_ETHF0:USTF0_20251005
["timestamp","ask_amount","ask_price","bid_price","bid_amount"]
[1759680181895,0.7577,4533.9,4533.8,1.14719]
[1759680182492,0.5436,4533.9,4533.8,1.14719]
[1759680182793,0.5608,4534.5,4534.4,0.92944]
[1759680182990,1.04165204,4534.5,4534.4,1.36814]
[1759680183394,1.23855204,4534.5,4534.4,1.36814]
[1759680183595,0.7577,4534.5,4534.4,1.36814]
[1759680184092,0.7577,4534.5,4533.7,0.5326]
[1759680184093,0.2147,4533.8,4533.7,0.5326]
[1759680184393,0.7577,4533.8,4533.7,0.6179]
[1759680184590,0.4288,4533.8,4533.7,0.6179]
[1759680184893,0.7577,4533.8,4533.7,0.6179]
[1759680186195,0.7577,4533.8,4533.7,0.8427]
[1759680186794,0.7577,4533.8,4533.7,1.3682]
[1759680187094,0.7577,4533.8,4533.7,0.8394]
[1759680187296,0.7577,4533.8,4533.7,0.6179]
[1759680187695,0.7577,4533.8,4533.7,1.3682]
[1759680188396,0.7577,4533.8,4533.7,1.0604]
[1759680189296,0.7577,4533.8,4533.7,0.8394]
[1759680189493,0.7577,4533.8,4533.7,1.0604]
[1759680189996,0.7577,4533.8,4533.7,0.8427]
[1759680190592,0.7577,4533.8,4533.7,0.6179]
[1759680191795,0.7577,4533.8,4533.7,0.3969]
[1759680191992,0.7577,4533.8,4533.7,0.8427]
[1759680192201,0.7577,4533.8,4533.7,1.1472]
[1759680192496,0.7577,4533.8,4533.7,1.3682]
[1759680192997,1.2492,4533.9,4533.8,1.14719]
[1759680193199,1.7928,4533.9,4533.8,1.14719]
[1759680194393,2.0069,4533.9,4533.8,0.61789]
[1759680194692,2.0069,4533.9,4533.8,0.39689]
[1759680194895,2.0069,4533.9,4533.8,0.61789]
[1759680195193,0.7577,4533.7,4533.6,0.39912534]
[1759680195497,0.7577,4533.7,4533.6,0.62012534]
[1759680196100,0.7577,4533.7,4533.6,0.39912534]
[1759680196893,1.1546,4533.7,4533.6,0.00221534]
[1759680197093,1.1546,4533.7,4533.6,0.22321534]
[1759680197094,6.1546,4533.7,4533.6,0.22321534]
[1759680197290,6.1546,4533.7,4533.6,0.00221534]
[1759680197595,6.1546,4533.7,4533.6,0.22321534]
[1759680199199,6.1546,4533.7,4533.6,0.00221534]
[1759680199400,6.1546,4533.7,4533.6,0.22321534]
[1759680200400,6.1546,4533.7,4533.6,0.00221534]
[1759680200698,6.1546,4533.7,4533.6,0.22321534]
[1759680200898,6.1546,4533.7,4533.6,0.62012534]
[1759680201603,6.1546,4533.7,4533.6,0.00221534]
[1759680203206,6.1546,4533.7,4532.6,2.75631554]
[1759680203207,0.8798,4532.5,4532.4,0.39701]
[1759680203398,0.8798,4532.5,4532.4,0.61801]
[1759680203899,0.8798,4532.5,4532.4,0.84141]
[1759680204100,0.88248037,4532.5,4532.4,0.84426468]
[1759680204403,0.88248037,4532.5,4532.4,2.03317479]
[1759680205003,0.88248037,4532.5,4532.4,0.84426468]
[1759680205797,0.88248037,4532.5,4532.4,0.62326468]
[1759680206003,0.88248037,4532.5,4532.4,0.84426468]
[1759680207707,0.88248037,4532.5,4532.4,0.62326468]
[1759680208009,0.88248037,4532.5,4532.4,0.84426468]
[1759680208711,0.88248037,4532.5,4532.4,0.62326468]
[1759680208911,0.88248037,4532.5,4532.4,0.84426468]
[1759680209707,0.88248037,4532.5,4532.4,0.62326468]
[1759680209909,0.88248037,4532.5,4532.4,0.84426468]
[1759680211511,0.88248037,4532.5,4532.4,1.36686468]
[1759680211812,0.88248037,4532.5,4532.4,1.14586468]
[1759680212010,0.88248037,4532.5,4532.4,1.36686468]
[1759680212204,0.88248037,4532.5,4532.4,1.06066468]
[1759680212813,0.88248037,4532.5,4532.4,0.83966468]
[1759680213012,0.88248037,4532.5,4532.4,1.06066468]
[1759680213818,0.88248037,4532.5,4532.4,0.83966468]
[1759680214019,0.88248037,4532.5,4532.4,1.06066468]
[1759680214921,0.88248037,4532.5,4532.4,0.83966468]
[1759680215218,0.88248037,4532.5,4532.4,1.06066468]
[1759680215916,0.88248037,4532.5,4532.4,0.83966468]
[1759680216108,0.88248037,4532.5,4532.4,1.06066468]
[1759680217324,0.67898037,4532.5,4532.4,0.221]
[1759680217524,0.89188037,4532.5,4532.4,0.221]
[1759680218025,0.56288037,4532.5,4532.4,0.0672]
[1759680218227,0.86838037,4532.5,4532.4,0.68521]
[1759680218426,0.86838037,4532.5,4532.4,0.68786642]
[1759680219026,0.86838037,4532.5,4532.4,0.46686642]
[1759680219326,1.96018037,4532.5,4532.4,0.68786642]
[1759680220927,1.96018037,4532.5,4532.4,0.46686642]
[1759680221320,1.96018037,4532.5,4532.4,0.62066642]
[1759680222120,1.96018037,4532.5,4532.4,0.39966642]
[1759680222321,1.96018037,4532.5,4532.4,0.62066642]
[1759680222821,2.84688037,4532.5,4532.4,0.62066642]
[1759680223127,2.84688037,4532.5,4532.4,0.39966642]
[1759680223327,2.84688037,4532.5,4532.4,0.62066642]
[1759680223627,2.84688037,4532.5,4532.4,0.68786642]
[1759680225120,2.84688037,4532.5,4532.4,0.62066642]
[1759680226817,2.84688037,4532.5,4532.4,0.68786642]
[1759680227024,2.84688037,4532.5,4532.4,0.75506642]
[1759680228630,2.84688037,4532.5,4532.4,0.68786642]
[1759680229134,2.84688037,4532.5,4532.4,0.39966642]
[1759680229628,2.84688037,4532.5,4532.4,0.62066642]
[1759680230425,2.84688037,4532.5,4532.4,0.39966642]
[1759680230624,2.84688037,4532.5,4532.4,0.62066642]
[1759680237638,2.84688037,4532.5,4532.4,0.68656642]
[1759680239140,2.84688037,4532.5,4532.4,0.39966642]
[1759680239438,2.84688037,4532.5,4532.4,0.62066642]
[1759680240832,3.32349257,4532.5,4532.4,0.39966642]
[1759680241036,3.32349257,4532.5,4532.4,0.62066642]
[1759680243640,3.3307,4533.5,4532.5,0.1222]
[1759680243939,0.448,4533.0,4532.9,1.15037]
[1759680244131,0.448,4533.0,4532.9,1.37137]
[1759680244835,0.45050835,4533.0,4532.9,1.37137]
[1759680245842,0.77060835,4533.0,4532.9,1.37137]
[1759680246432,0.77060835,4533.0,4532.9,0.94777]
[1759680246940,0.77060835,4533.0,4532.9,0.72677]
[1759680247235,0.90040835,4533.0,4532.9,0.39697]
[1759680247442,0.90040835,4533.0,4532.9,0.61797]
[1759680247941,0.90040835,4533.0,4532.9,0.39697]
[1759680248242,0.7681,4532.6,4532.5,0.397]
[1759680248443,0.7681,4532.6,4532.5,0.618]
[1759680248834,0.8326,4532.5,4532.4,0.39965642]
[1759680249042,4.0404,4532.5,4532.4,0.62065642]
[1759680249538,4.0404,4532.5,4532.4,0.95045642]
[1759680250444,4.0404,4532.5,4532.4,1.15375642]
[1759680252446,0.7681,4532.5,4532.4,1.15375642]
[1759680262553,0.7681,4532.5,4532.4,1.37795642]
[1759680264153,4.3097,4532.8,4532.7,0.39698]
[1759680264449,4.3097,4532.8,4532.7,1.15068]
[1759680264450,3.8976755,4532.8,4532.7,1.15068]
[1759680264651,3.2078,4532.8,4532.7,1.15068]
[1759680265855,3.2078,4532.8,4532.7,1.37168]
[1759680266851,3.2078,4532.8,4532.7,1.15068]
[1759680267052,3.2078,4532.8,4532.7,1.37168]
[1759680268258,3.2078,4532.8,4532.7,1.15068]
[1759680268554,3.4239,4532.8,4532.7,1.15068]
[1759680268759,3.9536,4532.8,4532.7,1.37168]
[1759680268954,3.9536,4532.8,4532.7,1.15068]
[1759680269155,3.9536,4532.8,4532.7,1.37168]
[1759680269858,3.2078,4532.8,4532.7,1.37168]
[1759680270054,3.4239,4532.8,4532.7,1.37168]
[1759680270653,3.2078,4532.8,4532.7,1.15068]
[1759680270857,0.00250835,4533.0,4532.9,0.82957]
[1759680271058,0.00250835,4533.0,4532.9,1.15067]
[1759680271255,0.21860835,4533.0,4532.9,1.15067]
[1759680271860,0.74830835,4533.0,4532.9,1.15067]
[1759680272858,0.74830835,4533.0,4532.9,0.92647]
[1759680273060,0.74830835,4533.0,4532.9,0.93907]
[1759680273456,0.74830835,4533.0,4532.9,1.14747]
[1759680273657,0.74830835,4533.0,4532.9,0.92647]
[1759680273856,0.74830835,4533.0,4532.9,1.14747]
[1759680274056,0.74830835,4533.0,4532.9,1.36447]
[1759680274861,0.74830835,4533.0,4532.9,1.14347]
[1759680275062,0.74830835,4533.0,4532.9,1.36447]
[1759680278561,4.07960835,4533.0,4532.9,0.39697]
[1759680278763,4.16776835,4533.0,4532.9,0.61797]
[1759680279062,3.77080835,4533.0,4532.9,0.61797]
[1759680279255,4.10030835,4533.0,4532.9,0.61797]
[1759680280864,4.10030835,4533.0,4532.9,0.39697]
[1759680281067,4.10030835,4533.0,4532.9,0.61797]
[1759680281968,4.10030835,4533.0,4532.9,0.39697]
[1759680282163,4.10030835,4533.0,4532.9,0.61797]
[1759680282363,4.10030835,4533.0,4532.9,0.39697]
[1759680282564,4.10030835,4533.0,4532.9,0.61797]
[1759680283063,4.10030835,4533.0,4532.7,0.3287]
[1759680283262,4.10030835,4533.0,4532.9,0.39697]
[1759680283460,4.56932731,4533.0,4532.9,0.39697]
[1759680284168,4.56932731,4533.0,4532.9,0.61797]
[1759680284365,4.11632731,4533.0,4532.9,1.38827]
[1759680284669,3.67932731,4533.0,4532.9,1.38827]
[1759680284969,3.21030835,4533.0,4532.9,1.38827]
[1759680285157,3.42800835,4533.0,4532.9,1.38827]
[1759680287970,0.22020835,4533.0,4532.9,1.38827]
[1759680288268,3.21030835,4533.0,4532.9,1.38827]
[1759680288577,0.00250835,4533.0,4532.9,1.38827]
[1759680292067,0.21400835,4533.0,4532.9,1.38827]
[1759680292260,0.54190835,4533.0,4532.9,1.38827]
[1759680292468,0.00250835,4533.0,4532.9,1.38827]
[1759680294070,1.2375,4533.2,4533.1,1.13366]
[1759680294268,1.7062521,4533.2,4533.1,1.13366]
[1759680294977,1.70899201,4533.2,4533.1,1.13366]
[1759680297268,1.92049201,4533.2,4533.1,1.13366]
[1759680299775,1.24023991,4533.2,4533.1,1.13366]
[1759680300371,1.45173991,4533.2,4533.1,1.13366]
[1759680301174,1.98713991,4533.2,4533.1,1.13366]
[1759680302372,1.98713991,4533.2,4533.1,1.35466]
[1759680307785,2.38407991,4533.2,4533.1,1.13366]
[1759680307990,2.38407991,4533.2,4533.1,1.35466]
[1759680308284,1.98713991,4533.2,4533.1,1.35466]
[1759680308480,2.38407991,4533.2,4533.1,1.35466]
[1759680308786,1.45173991,4533.2,4533.1,1.35466]
[1759680309285,1.45173991,4533.2,4533.1,1.13366]
[1759680309484,1.45173991,4533.2,4533.1,1.35466]
[1759680309876,1.45173991,4533.2,4533.1,1.13366]
[1759680310076,1.45173991,4533.2,4533.1,1.35466]
[1759680310787,1.45173991,4533.2,4533.1,1.13366]
[1759680310981,1.45173991,4533.2,4533.1,1.35466]
[1759680311985,1.98713991,4533.2,4533.1,1.13366]
[1759680312189,1.98713991,4533.2,4533.1,1.35466]
[1759680312986,1.98713991,4533.2,4533.1,1.13366]
[1759680313191,1.98713991,4533.2,4533.1,1.35466]
[1759680313382,1.45173991,4533.2,4533.1,1.35466]
[1759680313587,1.24023991,4533.2,4533.1,1.35466]
[1759680314083,1.45173991,4533.2,4533.1,1.35466]
[1759680314989,1.45173991,4533.2,4533.1,1.13366]
[1759680315189,1.45173991,4533.2,4533.1,1.35466]
[1759680316094,0.77818991,4533.2,4533.1,1.13366]
[1759680316391,0.00273991,4533.2,4533.1,1.35466]
[1759680317885,0.21423991,4533.2,4533.1,1.35466]
[1759680318082,0.72783991,4533.2,4533.1,1.13366]
[1759680318286,0.72783991,4533.2,4533.1,1.35466]
[1759680319189,0.72783991,4533.2,4533.1,1.13366]
[1759680319389,0.72783991,4533.2,4533.1,1.35466]
[1759680319592,0.72783991,4533.2,4533.1,1.13366]
[1759680319794,0.72783991,4533.2,4533.1,1.35466]
[1759680319994,1.19809558,4533.2,4533.1,1.35466]
[1759680320686,0.72783991,4533.2,4533.1,1.35466]
[1759680321190,0.72783991,4533.2,4533.1,1.13366]
[1759680321493,1.19819913,4533.2,4533.1,1.35466]
[1759680322294,1.19819913,4533.2,4533.1,1.13366]
[1759680322594,1.19819913,4533.2,4533.1,1.35466]
[1759680323298,1.19819913,4533.2,4533.1,1.13366]
[1759680323495,1.19819913,4533.2,4533.1,1.35466]
[1759680323994,1.19819913,4533.2,4533.1,1.13366]
[1759680324496,1.19819913,4533.2,4533.1,1.35466]
[1759680324995,0.68459913,4533.2,4533.1,1.35466]
[1759680325196,0.21423991,4533.2,4533.1,1.35466]
[1759680325390,0.21423991,4533.2,4533.1,1.13366]
[1759680325587,0.68474012,4533.2,4533.1,1.35466]
[1759680328397,0.89144012,4533.2,4533.1,1.35466]
[1759680329398,1.19834012,4533.2,4533.1,1.13366]
[1759680329591,1.19834012,4533.2,4533.1,1.35466]
[1759680330501,1.19834012,4533.2,4533.1,1.13366]
[1759680330704,1.19834012,4533.2,4533.1,1.35466]
[1759680331002,0.89144012,4533.2,4533.1,1.35466]
[1759680331201,0.68474012,4533.2,4533.1,1.35466]
[1759680331699,0.47324012,4533.2,4533.1,1.13366]
[1759680331902,0.47324012,4533.2,4533.1,1.35466]
[1759680332601,0.47324012,4533.2,4533.1,1.13366]
[1759680332901,0.47324012,4533.2,4533.1,1.35466]
[1759680333607,0.47324012,4533.2,4533.1,1.13366]
[1759680333804,0.47324012,4533.2,4533.1,1.35466]
[1759680334305,0.47324012,4533.2,4533.1,1.13366]
[1759680334505,0.47324012,4533.2,4533.1,1.35466]
[1759680334699,0.47324012,4533.2,4533.1,1.13366]
[1759680335005,0.00273991,4533.2,4533.1,2.54432115]
[1759680335706,0.00273991,4533.2,4533.1,2.32332115]
[1759680335907,0.00273991,4533.2,4533.1,2.54432115]
[1759680336404,9.91e-06,4533.2,4533.1,2.54432115]
[1759680336595,4.1493,4533.5,4533.4,0.39693]
[1759680336903,3.2078,4533.5,4533.4,1.36563]
[1759680337600,3.21059908,4533.5,4533.4,1.36563]
[1759680339211,3.21059908,4533.5,4533.4,2.55571944]
[1759680340704,0.00279908,4533.5,4533.4,1.36563]
[1759680342203,9.08e-06,4533.5,4533.4,1.36563]
[1759680343805,0.75120908,4533.5,4533.1,1.5878284]
[1759680344007,3.959,4533.2,4533.1,1.58638008]
[1759680344311,3.959,4533.2,4533.1,1.80738008]
[1759680344511,3.959,4533.2,4533.1,0.61795]
[1759680344812,3.959,4533.2,4533.1,0.92815]
[1759680345312,0.7512,4533.2,4533.1,0.92815]
[1759680346515,0.7512,4533.2,4533.1,0.70715]
[1759680346816,0.7512,4533.2,4533.1,2.3435252]
[1759680351015,0.7512,4533.2,4533.1,2.5581252]
[1759680351219,0.7512,4533.2,4533.1,1.36875]
[1759680351414,0.7512,4533.2,4533.1,2.55820456]
[1759680352416,0.7512,4533.2,4533.1,1.36875]
[1759680352618,0.7512,4533.2,4533.1,2.55824226]
[1759680353011,0.7512,4533.2,4533.1,1.36875]
[1759680354320,0.4313,4533.2,4533.1,1.36875]
[1759680354710,0.2225,4533.2,4533.1,1.36875]
[1759680361420,0.53850908,4533.5,4533.4,0.82563]
[1759680361623,0.21590908,4533.5,4533.4,1.36193]
[1759680362021,9.08e-06,4533.5,4533.4,1.04663]
[1759680362222,0.37442,4533.8,4533.6,1.14091]
[1759680362525,3.2078,4534.7,4534.6,1.14082]
[1759680362821,0.3226,4535.3,4535.2,0.39677]
[1759680363022,0.7498,4535.9,4535.8,0.92611]
[1759680363318,1.21921114,4535.9,4535.8,0.83411617]
[1759680363524,0.75249681,4535.9,4535.8,1.36401617]
[1759680364116,0.32529681,4535.9,4535.8,1.36401617]
[1759680364322,0.00269681,4535.9,4535.8,1.36401617]
[1759680365725,0.54119681,4535.9,4535.8,1.36401617]
[1759680366728,0.00269681,4535.9,4535.8,1.36401617]
[1759680371525,0.00269681,4535.9,4535.8,1.14301617]
[1759680371828,0.75249681,4535.9,4535.8,0.00230617]
[1759680372028,0.75249681,4535.9,4535.8,0.22330617]
[1759680372430,0.75249681,4535.9,4535.8,0.00230617]
[1759680372628,0.75249681,4535.9,4535.8,0.22330617]
[1759680372825,0.75249681,4535.9,4535.8,0.00230617]
[1759680373020,0.75249681,4535.9,4535.8,0.43740617]
[1759680373825,0.75249681,4535.9,4535.8,0.75270617]
[1759680374933,0.75249681,4535.9,4535.8,0.53170617]
[1759680375126,0.75249681,4535.9,4535.8,0.75270617]
[1759680375728,0.75249681,4535.9,4535.8,0.96730617]
[1759680375927,0.75249681,4535.9,4535.8,0.74630617]
[1759680376125,4.35700681,4535.9,4535.8,0.00230617]
[1759680376525,4.35700681,4535.9,4535.8,0.22330617]
[1759680376926,4.35700681,4535.9,4535.8,0.00230617]
[1759680377130,4.35700681,4535.9,4535.8,0.22330617]
[1759680377131,3.96029681,4535.9,4535.8,0.22330617]
[1759680377531,4.35700681,4535.9,4535.8,0.62002617]
[1759680378035,4.35700681,4535.9,4535.8,0.39902617]
[1759680378335,4.35700681,4535.9,4535.8,0.62002617]
[1759680379036,4.35700681,4535.9,4535.8,0.39902617]
[1759680379334,0.7595,4534.7,4534.6,1.15162]
[1759680379535,0.7595,4534.7,4534.6,1.37262]
[1759680380239,0.7595,4534.7,4534.6,1.37476848]
[1759680380840,0.7595,4534.7,4534.6,1.15376848]
[1759680381244,0.7595,4534.7,4534.6,1.37476848]
[1759680384846,0.7595,4534.7,4534.6,1.15376848]
[1759680385248,0.7595,4534.7,4534.6,0.39896848]
[1759680385540,0.553,4534.7,4534.6,1.37476848]
[1759680385745,0.2159,4535.0,4534.9,0.7548]
[1759680385945,0.2159,4535.0,4534.9,0.9758]
[1759680386145,0.553,4535.0,4534.9,1.3726]
[1759680388748,0.7595,4535.0,4534.9,1.3726]
[1759680390750,3.2078,4535.2,4535.1,0.39678]
[1759680390951,3.2078,4535.7,4535.6,1.15153]
[1759680391148,3.2078,4535.7,4535.6,1.37253]
[1759680391448,0.00269681,4535.9,4535.8,0.39672]
[1759680391749,0.55569681,4535.9,4535.8,1.15152]
[1759680400757,0.00269681,4535.9,4535.8,1.15152]
[1759680401256,0.33239681,4535.9,4535.8,1.15152]
[1759680401857,0.53589681,4535.9,4535.8,1.15152]
[1759680404461,0.7438,4535.6,4535.5,0.95794]
[1759680404661,0.7438,4535.6,4535.5,1.38754]
[1759680407058,0.5332,4535.6,4535.5,1.38754]
[1759680407255,0.53589681,4535.9,4535.8,1.13932]
[1759680407455,0.53589681,4535.9,4535.8,1.36032]
[1759680409663,0.00269681,4535.9,4535.8,1.36032]
[1759680409957,0.21979681,4535.9,4535.8,1.36032]
[1759680410163,1.16030681,4535.9,4535.8,1.36032]
[1759680411452,1.16030681,4535.9,4535.8,1.04962]
[1759680411656,1.16030681,4535.9,4535.8,0.39672]
[1759680411960,1.16030681,4535.9,4535.8,0.82162]
[1759680412164,1.16030681,4535.9,4535.8,1.13232]
[1759680412364,0.76359681,4535.9,4535.8,1.13232]
[1759680412865,0.76359681,4535.9,4535.8,1.33722]
[1759680413758,0.00269681,4535.9,4535.8,1.33722]
[1759680417462,0.33549681,4535.9,4535.8,1.33722]
[1759680418666,0.73220681,4535.9,4535.8,1.33722]
[1759680419359,0.55259681,4535.9,4535.8,1.33722]
[1759680419559,0.94930681,4535.9,4535.8,1.33722]
[1759680419760,0.55259681,4535.9,4535.8,1.33722]
[1759680419966,0.94930681,4535.9,4535.8,1.33722]
[1759680420366,0.55259681,4535.9,4535.8,1.33722]
[1759680420767,0.00269681,4535.9,4535.8,1.33722]
[1759680421763,0.73220681,4535.9,4535.8,1.33722]
[1759680422061,0.55259681,4535.9,4535.8,1.33722]
[1759680422267,0.00269681,4535.9,4535.8,2.5268852]
[1759680422969,6.81e-06,4535.9,4535.8,1.33722]
[1759680423163,0.3538,4536.0,4535.9,1.11621]
[1759680423360,0.29224783,4536.0,4535.9,1.11621]
[1759680423562,1e-08,4536.0,4535.9,7.70243027]
[1759680423769,1e-08,4536.0,4535.9,6.11621]
[1759680423958,3.2078,4536.7,4536.6,0.80545]
[1759680424268,3.20992708,4536.7,4536.6,1.33715]
[1759680424869,0.00212708,4536.7,4536.6,1.33715]
[1759680425068,3.2078,4537.4,4537.3,0.7195]
[1759680425368,3.9687,4537.4,4536.9,0.3107]
[1759680425666,0.8931,4537.0,4536.9,1.11612]
[1759680425868,0.8931,4537.0,4536.9,1.33712]
[1759680426070,0.39664,4536.7,4536.6,1.18864988]
[1759680426263,0.5603,4536.5,4536.4,1.58530988]
[1759680426463,0.8931,4536.5,4536.4,1.58530988]
[1759680426666,0.8931,4536.5,4536.4,2.01020988]
[1759680426868,0.8931,4536.5,4536.4,2.52580988]
[1759680428367,0.8931,4536.5,4536.4,1.33716]
[1759680428572,1.28976,4536.5,4536.4,0.2039]
[1759680428764,0.3328,4536.2,4536.1,1.58533988]
[1759680428967,0.7609,4536.2,4536.1,0.82159]
[1759680429269,0.1322,4536.0,4535.9,1.58535988]
[1759680429463,0.8931,4536.0,4535.9,2.01025988]
[1759680429972,0.8931,4536.0,4535.9,2.32095988]
[1759680430274,0.8931,4536.0,4535.9,0.7356]
[1759680430566,0.8931,4536.0,4535.9,0.2039]
[1759680430767,0.82481,4535.9,4535.7,0.39672]
[1759680430960,1.15761,4535.9,4535.8,0.7356]
[1759680431164,0.7609,4535.9,4535.8,0.9405]
[1759680431474,0.7609,4535.9,4535.8,0.7195]
[1759680431668,0.7609,4535.9,4535.8,0.9405]
[1759680432568,3.7577,4536.3,4536.2,0.80548]
[1759680432771,3.7577,4536.3,4536.2,1.33718]
[1759680432969,3.9687,4536.3,4536.2,1.33718]
[1759680433569,3.9687,4536.3,4536.2,0.9405]
[1759680433964,3.9687,4536.3,4536.2,0.6298]
[1759680434365,3.9687,4536.3,4536.2,0.221]
[1759680434872,1.2898,4536.0,4535.9,0.2039]
[1759680435077,1.2898,4536.0,4535.9,0.4249]
[1759680435370,0.8931,4536.0,4535.9,0.7356]
[1759680435672,0.8931,4536.0,4535.9,0.9405]
[1759680436169,0.3328,4536.2,4535.9,0.5317]
[1759680436370,0.5499,4536.2,4536.1,0.7195]
[1759680436672,0.7609,4536.2,4536.1,0.7195]
[1759680437572,0.7609,4536.2,4536.1,0.9405]
[1759680438371,0.7609,4536.2,4536.1,0.7195]
[1759680438673,0.7609,4536.2,4536.1,1.33719]
[1759680439172,1.15758,4536.2,4536.1,1.33719]
[1759680439872,1.15758,4536.2,4536.1,1.11619]
[1759680440271,1.15758,4536.2,4536.1,0.9405]
[1759680440471,1.15758,4536.2,4536.1,0.221]
[1759680440973,0.7866,4536.1,4536.0,1.1629]
[1759680441175,0.7866,4536.1,4536.0,1.3839]
[1759680452681,1.6547,4536.4,4536.3,0.81247]
[1759680452980,0.5417,4536.4,4536.3,1.14667]
[1759680453176,0.7657,4536.4,4536.3,1.14667]
[1759680453377,1.16236,4536.4,4536.3,1.14667]
[1759680453775,1.16236,4536.4,4536.3,1.36767]
[1759680453981,0.7657,4536.4,4536.3,1.36767]
[1759680454384,1.16236,4536.4,4536.3,1.36767]
[1759680455475,1.16236,4536.4,4536.3,1.03347]
[1759680455476,1.61812539,4536.4,4536.3,1.03347]
[1759680456380,1.22146539,4536.4,4536.3,1.03347]
[1759680456678,1.61812539,4536.4,4536.3,1.36767]
[1759680459886,1.22146539,4536.4,4536.3,1.36767]
[1759680464386,0.45576539,4536.4,4536.3,1.36767]
[1759680464583,1.0883,4536.7,4536.6,0.81245]
[1759680464783,0.45640294,4536.7,4536.6,1.36765]
[1759680464984,1.22210294,4536.7,4536.5,1.19040909]
[1759680465184,1.28635,4536.5,4536.4,1.19040909]
[1759680465487,1.16238,4536.2,4536.1,1.79549909]
[1759680465690,1.16238,4536.2,4536.1,2.55809909]
[1759680467293,0.7657,4536.2,4536.1,2.55809909]
[1759680469490,0.5417,4536.2,4536.1,2.55809909]
[1759680469692,1.113,4536.4,4536.3,1.14037]
[1759680469897,0.45622502,4536.4,4536.3,1.14037]
[1759680473696,0.85288502,4536.4,4536.3,1.14037]
[1759680474000,1.62658502,4536.4,4536.3,0.9647]
[1759680475193,4.83438502,4536.4,4536.3,0.2174]
[1759680475400,4.83438502,4536.4,4536.3,0.4384]
[1759680479699,4.83438502,4536.4,4536.1,1.19040697]
[1759680479700,4.00032502,4536.4,4536.1,1.19040697]
[1759680479907,1.17039,4536.1,4536.0,1.19040697]
[1759680480202,1.17039,4536.1,4536.0,1.41140697]
[1759680481501,1.17039,4536.1,4536.0,0.221]
[1759680481806,1.17039,4536.1,4536.0,0.4384]
[1759680482005,1.17039,4536.1,4536.0,0.8351]
[1759680482300,0.5222,4536.0,4535.9,1.19040697]
[1759680482503,0.5222,4536.0,4535.9,1.41140697]
[1759680482504,1.2959,4536.0,4535.9,1.41140697]
[1759680482802,1.2959,4536.0,4535.9,0.221]
[1759680487313,1.2959,4536.0,4535.9,1.36141]
[1759680487712,1.1704,4536.0,4535.9,1.36141]
[1759680488011,1.2959,4536.0,4535.9,0.9647]
[1759680489009,3.2078,4536.4,4536.0,0.7117]
[1759680489209,4.04186,4536.4,4536.3,0.2174]
[1759680489406,4.49353202,4536.4,4536.3,0.4384]
[1759680489712,4.82983202,4536.4,4536.3,0.4384]
[1759680490204,4.82983202,4536.4,4536.3,0.221]
[1759680502424,1.27881,4536.0,4535.9,0.93591]
[1759680502913,1.27881,4536.0,4535.9,0.223]
[1759680503314,1.27881,4536.0,4535.9,0.61971]
[1759680504821,0.8821,4536.0,4535.9,0.61971]
[1759680505120,0.8821,4536.0,4535.9,0.93591]
[1759680506419,0.8821,4536.0,4535.9,2.12631697]
[1759680506820,0.5411,4536.0,4535.9,2.35021697]
[1759680507221,3.2078,4536.3,4536.2,1.15978]
[1759680507425,3.88293097,4536.3,4536.2,1.15978]
[1759680507723,4.19823097,4536.3,4536.2,1.15978]
[1759680509431,3.65713097,4536.3,4536.2,1.15978]
[1759680509934,4.19823097,4536.3,4536.2,1.15978]
[1759680510325,0.99043097,4536.3,4536.2,1.15978]
[1759680510526,0.99043097,4536.3,4536.2,1.38078]
[1759680511828,1.19613097,4536.3,4536.2,1.38078]
[1759680517942,0.99043097,4536.3,4536.2,1.38078]
[1759680518544,3.33598722,4537.0,4536.9,1.15672]
[1759680518545,3.72608722,4537.0,4536.9,1.15672]
[1759680518842,3.72608722,4537.0,4536.9,1.37772]
[1759680518843,4.51993895,4537.0,4536.9,1.37772]
[1759680519046,4.51993895,4537.0,4536.9,0.61762]
[1759680519640,4.91654895,4537.0,4536.9,0.221]
[1759680520043,4.91654895,4537.0,4536.9,0.61762]
[1759680521347,4.91654895,4537.0,4536.9,0.221]
[1759680521545,4.91654895,4537.0,4536.9,0.61762]
[1759680524146,0.725,4536.8,4536.7,0.39663]
[1759680524341,1.17725173,4536.8,4536.7,0.61763]
[1759680524543,0.76325173,4536.8,4536.7,1.37773]
[1759680524744,0.45225173,4536.8,4536.7,1.37773]
[1759680524950,0.00268722,4537.0,4536.9,1.15672]
[1759680527249,0.00268722,4537.0,4536.9,1.33641984]
[1759680527449,0.00268722,4537.0,4536.9,9.54421984]
[1759680527650,0.00268722,4537.0,4536.9,10.73438246]
[1759680527852,0.00268722,4537.0,4536.9,9.54421984]
[1759680529252,0.00268722,4537.0,4536.9,10.7309152]
[1759680529447,0.00268722,4537.0,4536.9,9.54421984]
[1759680531152,0.00268722,4537.0,4536.9,10.73028715]
[1759680532051,0.00268722,4537.0,4536.9,10.95128715]
[1759680534149,0.00268722,4537.0,4536.9,9.62679068]
[1759680534357,0.31968722,4537.0,4536.9,9.62679068]
[1759680534742,0.45228722,4537.0,4536.9,9.62679068]
[1759680534948,0.45228722,4537.0,4536.9,10.02341068]
[1759680535755,0.31968722,4537.0,4536.9,10.02341068]
[1759680535952,0.00268722,4537.0,4536.9,10.02341068]
[1759680536357,0.31968722,4537.0,4536.9,10.02341068]
[1759680537158,0.45228722,4537.0,4536.9,10.02341068]
[1759680540259,0.31968722,4537.0,4536.9,10.02341068]
[1759680541055,0.45228722,4537.0,4536.9,10.02341068]
[1759680541459,1.1131,4537.4,4537.3,1.08679]
[1759680541656,1.1131,4537.4,4537.3,1.30779]
[1759680541852,0.1326,4537.5,4537.4,1.08678]
[1759680542058,0.3454,4537.5,4537.4,1.08678]
[1759680542460,0.34737636,4537.5,4537.4,1.08678]
[1759680542959,0.34737636,4537.5,4537.4,4.29458]
[1759680543358,0.66437636,4537.5,4537.4,4.29458]
[1759680548461,0.31897636,4537.5,4537.4,4.29458]
[1759680548866,1.1132,4537.8,4537.4,4.29458]
[1759680549163,0.4727475,4538.7,4538.6,1.08467]
[1759680549365,0.6893475,4538.7,4538.6,4.25837]
[1759680549759,0.6893475,4538.7,4538.6,4.03637]